bitfinex/quotes_ETHUSD_20240816
["timestamp","ask_amount","ask_price","bid_price","bid_amount"]
[1723779423897,0.23716416,2583.4,2583.2,1.93552]
[1723779424088,3.370277,2583.7,2583.2,1.93552]
[1723779424434,0.23717265,2583.6,2583.2,1.93552]
[1723779424639,0.23717265,2583.5,2583.2,1.93552]
[1723779424789,0.23716039,2583.4,2583.0,1.93571]
[1723779424994,5.305487,2583.7,2583.2,1.93558]
[1723779424995,0.23716039,2583.3,2583.2,1.93558]
[1723779425194,3.370277,2583.7,2583.2,1.93558]
[1723779425533,0.23717381,2583.6,2583.2,1.93558]
[1723779425692,0.23717381,2583.5,2583.2,1.93558]
[1723779425898,0.23717381,2583.4,2583.2,1.93558]
[1723779426101,0.23716298,2583.3,2583.0,1.93571]
[1723779426297,1.93529,2583.6,2582.8,1.93585]
[1723779426512,4.65443618,2583.5,2582.8,1.93585]
[1723779426806,0.23717618,2583.4,2582.7,1.93589]
[1723779427134,0.23717618,2583.3,2582.7,1.93589]
[1723779427303,4.41726,2583.5,2582.6,1.936]
[1723779427304,0.23717618,2583.2,2582.8,1.93588]
[1723779427493,0.23717618,2583.1,2582.8,1.93588]
[1723779427695,2.4819,2583.5,2583.0,1.9357]
[1723779427897,0.23719399,2583.4,2583.0,1.9357]
[1723779428211,0.23719399,2583.3,2583.0,1.9357]
[1723779428405,0.23719399,2583.2,2583.0,1.9357]
[1723779428609,0.24819,2583.4,2583.0,1.9357]
[1723779428835,0.2371929,2583.3,2583.0,1.9357]
[1723779429082,0.2371929,2583.2,2583.0,1.9357]
[1723779429335,0.24819,2583.4,2583.0,1.9357]
[1723779429537,0.23720059,2583.3,2583.0,1.9357]
[1723779429721,0.23720059,2583.2,2582.8,1.93588]
[1723779429895,0.23720059,2583.1,2582.8,1.93588]
[1723779430095,0.24819,2583.4,2582.8,1.93588]
[1723779430311,0.23720761,2583.3,2582.8,1.93588]
[1723779430540,0.23720761,2583.2,2582.8,1.93588]
[1723779430835,0.23721416,2583.1,2582.8,1.93588]
[1723779431043,0.23721416,2583.1,2582.4,5.7268]
[1723779431044,2.3568,2582.9,2582.3,1.93625]
[1723779431355,0.49664941,2582.8,2582.1,1.93636]
[1723779431635,0.49664941,2582.8,2582.0,1.93647]
[1723779431636,4.53005492,2582.7,2582.0,1.93647]
[1723779431800,0.23724492,2582.6,2582.0,1.93647]
[1723779432135,0.23724492,2582.6,2582.3,1.93625]
[1723779432632,0.23724492,2582.6,2582.1,1.9364]
[1723779432633,2.4184,2583.0,2582.6,1.93596]
[1723779432824,0.23728682,2582.9,2582.6,1.93596]
[1723779432994,2.4184,2583.0,2582.6,1.93596]
[1723779432995,0.23728682,2582.8,2582.6,1.93596]
[1723779433195,2.4184,2583.0,2582.6,1.93596]
[1723779433493,0.23729404,2582.9,2582.5,1.9361]
[1723779433742,2.4184,2583.0,2582.7,1.93594]
[1723779433951,0.23729707,2582.9,2582.7,1.93594]
[1723779434158,2.4184,2583.0,2582.7,1.93594]
[1723779434362,0.23728371,2582.9,2582.7,1.93594]
[1723779434671,0.23729652,2582.8,2582.7,1.93594]
[1723779434867,0.23729652,2582.8,2582.6,35.0]
[1723779435157,0.23729652,2582.7,2582.6,35.0]
[1723779435388,0.23729652,2582.7,2582.1,1.93637]
[1723779435538,2.52939104,2582.6,2582.1,1.93637]
[1723779435718,2.2921,2582.6,2582.1,1.93637]
[1723779435926,0.23730446,2582.5,2582.2,35.0]
[1723779436225,2.2921,2582.6,2582.2,35.0]
[1723779436421,0.23729379,2582.5,2582.2,35.0]
[1723779436654,2.2921,2582.6,2582.2,35.0]
[1723779436835,0.23730579,2582.5,2582.2,35.0]
[1723779437048,2.2921,2582.6,2582.2,35.0]
[1723779437258,0.23729258,2582.5,2582.2,35.0]
[1723779437434,0.23733605,2582.4,2582.2,35.0]
[1723779437633,2.52943605,2582.3,2582.2,35.0]
[1723779437835,2.2921,2582.3,2582.2,35.0]
[1723779438044,2.2921,2582.5,2582.2,35.0]
[1723779438263,0.23729988,2582.4,2582.2,35.0]
[1723779438571,2.2921,2582.5,2582.2,35.0]
[1723779438779,0.23730322,2582.4,2582.2,35.0]
[1723779439102,2.2921,2582.5,2582.2,35.0]
[1723779439374,0.23730898,2582.4,2582.2,35.0]
[1723779439576,2.2921,2582.5,2582.2,35.0]
[1723779440374,2.3031,2582.9,2582.4,1.93618]
[1723779440578,0.23730462,2582.8,2582.4,4.33878]
[1723779440783,7.44,2583.1,2582.7,1.93595]
[1723779441072,7.44,2583.1,2582.4,2.4026]
[1723779441073,0.23729941,2583.0,2582.8,35.0]
[1723779441233,0.23729941,2582.9,2582.8,35.0]
[1723779442159,0.23729941,2583.0,2582.8,35.0]
[1723779442376,0.23729941,2582.9,2582.8,35.0]
[1723779442577,0.23729941,2583.0,2582.8,35.0]
[1723779443180,0.23729941,2583.0,2582.4,1.93618]
[1723779443345,0.23729941,2582.9,2582.4,1.93618]
[1723779443545,0.23729941,2582.8,2582.4,1.93618]
[1723779443781,0.23729941,2582.7,2582.5,35.0]
[1723779443965,0.23734915,2583.0,2582.5,35.0]
[1723779444153,10.737105,2583.1,2582.5,35.0]
[1723779444154,0.23734718,2582.9,2582.5,35.0]
[1723779444482,0.23734718,2582.8,2582.5,35.0]
[1723779444640,0.23734718,2582.7,2582.5,35.0]
[1723779444980,9.37567,2583.1,2582.5,35.0]
[1723779445183,2.17308506,2583.0,2582.5,35.0]
[1723779445339,2.54044506,2582.9,2582.5,35.0]
[1723779445546,0.23734506,2582.8,2582.5,35.0]
[1723779445747,0.23734506,2582.7,2582.0,1.93646]
[1723779446065,2.3832,2582.5,2582.2,1.93632]
[1723779446276,2.3832,2582.8,2582.3,35.0]
[1723779446596,0.23736999,2582.7,2582.3,36.93625]
[1723779446789,0.23736999,2582.6,2582.3,36.93625]
[1723779446948,2.3832,2582.8,2582.3,35.0]
[1723779447290,0.23736103,2582.7,2582.3,35.0]
[1723779447501,0.23736103,2582.6,2582.3,35.0]
[1723779447649,2.3832,2582.8,2582.3,35.0]
[1723779447845,0.23740744,2582.7,2582.3,35.0]
[1723779448063,0.23740744,2582.6,2582.3,35.0]
[1723779448245,2.3832,2582.8,2582.3,35.0]
[1723779448470,0.23740812,2582.7,2582.3,35.0]
[1723779448676,0.23740812,2582.6,2582.3,35.0]
[1723779448870,11.14090546,2583.1,2582.5,1.93609]
[1723779449070,11.14090546,2583.1,2582.3,35.0]
[1723779449071,0.23741317,2583.0,2582.4,2.4421]
[1723779449280,0.23741317,2582.9,2582.6,1.93597]
[1723779449471,0.23740575,2582.8,2582.6,1.93597]
[1723779449773,7.44,2583.1,2582.7,1.93594]
[1723779449976,0.23743846,2583.0,2582.7,1.93594]
[1723779450278,0.23743846,2582.9,2582.8,1.93588]
[1723779450600,1.93565,2583.1,2582.3,35.0]
[1723779450744,1.93565,2583.1,2582.4,1.93611]
[1723779450745,2.54639331,2583.0,2582.4,1.93611]
[1723779450948,0.23739331,2582.9,2582.4,1.93611]
[1723779451148,0.23739331,2582.9,2582.3,36.93625]
[1723779451569,0.23739331,2582.8,2582.3,36.93625]
[1723779451776,0.23739331,2582.7,2582.3,36.93625]
[1723779451980,4.24474,2583.0,2582.3,36.93625]
[1723779452177,0.23748371,2582.9,2582.3,36.93625]
[1723779452498,4.24474,2583.0,2582.3,36.93625]
[1723779452499,0.2374833,2582.8,2582.3,36.93625]
[1723779452789,0.2374833,2582.7,2582.3,35.0]
[1723779452949,0.2374833,2582.6,2582.3,35.0]
[1723779453151,0.2374833,2582.5,2582.3,35.0]
[1723779453352,2.309,2582.6,2582.3,35.0]
[1723779453353,0.2374833,2582.4,2582.3,35.0]
[1723779453786,0.2374833,2582.5,2582.3,35.0]
[1723779454360,0.2374833,2582.4,2582.3,35.0]
[1723779454762,0.2374833,2582.5,2582.3,35.0]
[1723779454970,0.2374833,2582.4,2582.3,35.0]
[1723779455197,2.309,2582.6,2582.3,35.0]
[1723779455198,0.2374833,2582.5,2582.3,35.0]
[1723779455353,0.2374833,2582.4,2582.3,35.0]
[1723779455881,2.309,2582.6,2582.3,35.0]
[1723779455882,0.2374833,2582.5,2582.3,35.0]
[1723779456053,0.2374833,2582.4,2582.3,35.0]
[1723779456259,4.24475,2583.0,2582.3,35.0]
[1723779456767,0.66194449,2582.9,2582.3,35.0]
[1723779456967,0.23758405,2582.8,2582.3,35.0]
[1723779457170,0.23758405,2582.7,2582.3,35.0]
[1723779457367,0.23758405,2582.6,2582.3,35.0]
[1723779457565,0.23758405,2582.5,2582.3,35.0]
[1723779457797,6.1303366,2582.9,2582.3,35.0]
[1723779457798,0.23758405,2582.4,2582.3,35.0]
[1723779460865,0.23737426,2582.4,2582.3,35.0]
[1723779461502,0.23737426,2582.4,2582.3,36.93625]
[1723779462393,0.23737426,2582.4,2582.3,35.0]
[1723779464759,0.23737426,2582.4,2582.1,1.9364]
[1723779464983,0.23737426,2582.3,2582.1,1.9364]
[1723779465192,0.23737426,2582.2,2582.0,1.93646]
[1723779465399,5.74335667,2582.7,2582.0,1.93646]
[1723779465596,0.23725168,2582.6,2582.0,1.93646]
[1723779465890,0.23725168,2582.5,2582.1,35.0]
[1723779466099,0.23725168,2582.4,2582.1,35.0]
[1723779466256,0.23725168,2582.3,2582.1,35.0]
[1723779466463,0.23725168,2582.2,2582.1,35.0]
[1723779466889,0.23725168,2582.2,2581.7,2.323]
[1723779467090,0.23725168,2582.1,2581.7,0.01]
[1723779467291,0.23725168,2582.0,2581.7,1.94669]
[1723779467563,0.43626726,2582.4,2581.8,36.93662]
[1723779467806,0.23728123,2582.3,2582.0,1.93648]
[1723779468010,0.23728123,2582.2,2582.0,1.93648]
[1723779468315,0.23728123,2582.1,2582.0,1.93648]
[1723779468965,2.2823,2582.5,2582.0,1.93648]
[1723779469165,0.23722947,2582.4,2582.1,1.93638]
[1723779469373,5.25275685,2582.7,2582.1,1.93638]
[1723779469599,1.15114144,2582.6,2582.2,35.0]
[1723779469912,0.23721557,2582.5,2582.2,35.0]
[1723779470110,0.23721557,2582.4,2582.2,35.0]
[1723779470327,0.23721557,2582.3,2582.2,35.0]
[1723779471763,0.23721557,2582.3,2582.2,36.93633]
[1723779472970,0.23721557,2582.3,2582.2,1.93633]
[1723779473607,0.23721557,2582.3,2582.2,36.93633]
[1723779473921,0.2372864,2582.3,2582.2,36.93633]
[1723779476583,0.2372864,2582.3,2582.2,1.93633]
[1723779477071,0.2372864,2582.3,2582.2,36.93633]
[1723779477987,0.2372086,2582.3,2582.2,36.93633]
[1723779478400,0.23721763,2582.3,2582.2,36.93633]
[1723779478903,0.23721763,2582.3,2582.2,38.2826023]
[1723779479101,0.23721763,2582.3,2582.2,36.93633]
[1723779480388,0.23721763,2582.3,2582.2,1.93633]
[1723779480988,0.23721763,2582.3,2582.0,1.93648]
[1723779481325,0.66089506,2582.2,2582.0,1.93648]
[1723779481534,0.23721549,2582.1,2581.9,35.0]
[1723779481824,0.23721549,2582.0,2581.8,1.9366]
[1723779482035,0.23719796,2581.9,2581.8,3.95631222]
[1723779482236,0.23719796,2581.9,2581.8,5.30278717]
[1723779482737,0.23719546,2581.9,2581.8,5.30278717]
[1723779483235,0.23719546,2581.9,2581.8,7.58818717]
[1723779483400,0.49020117,2582.4,2582.0,1.93648]
[1723779483610,0.66073162,2582.3,2582.0,1.93648]
[1723779483921,0.23715861,2582.2,2582.0,1.93648]
[1723779484079,0.23715861,2582.1,2582.0,1.93648]
[1723779484284,0.23715861,2582.1,2582.0,3.28284577]
[1723779485011,0.23715861,2582.1,2582.0,1.93648]
[1723779485720,0.23715861,2582.1,2582.0,36.93648]
[1723779486096,0.23715861,2582.1,2581.8,1.9366]
[1723779486298,0.23715861,2582.0,2581.9,1.34646357]
[1723779486504,0.23715861,2582.0,2581.8,2.01971038]
[1723779486843,0.23715861,2581.9,2581.8,35.0]
[1723779487919,0.23715861,2581.9,2581.8,36.93663]
[1723779488119,0.23715861,2581.9,2581.8,35.0]
[1723779491220,0.23715861,2581.9,2581.7,0.01]
[1723779491429,0.23715861,2581.8,2581.7,0.01]
[1723779492058,0.92380826,2582.1,2581.7,4.64235809]
[1723779492243,0.23695863,2582.0,2581.7,3.2957]
[1723779492445,0.23695863,2581.9,2581.7,3.2957]
[1723779492644,2.3835,2582.2,2581.8,1.349]
[1723779492845,0.66005033,2582.1,2581.8,1.349]
[1723779493030,0.66005033,2582.0,2581.8,1.349]
[1723779493236,0.23692976,2581.9,2581.8,1.349]
[1723779493563,0.23635275,2581.9,2581.8,1.349]
[1723779493932,2.3835,2582.2,2581.8,1.349]
[1723779494145,0.23628044,2581.9,2581.8,1.349]
[1723779494460,2.59570386,2582.1,2581.8,1.349]
[1723779494660,2.59570386,2582.1,2581.7,0.01]
[1723779495273,2.17276044,2582.0,2581.7,0.01]
[1723779495453,2.2969,2581.9,2581.7,0.01]
[1723779496879,0.23628044,2581.8,2581.7,2.451]
[1723779497166,1.93627,2582.3,2581.7,3.8]
[1723779497330,1.93627,2582.3,2581.9,1.349]
[1723779497532,0.42286737,2582.2,2581.9,1.349]
[1723779497759,0.65917251,2582.1,2581.9,1.349]
[1723779498074,0.23622817,2582.0,2581.9,1.349]
[1723779501072,0.23617328,2582.0,2581.9,1.349]
[1723779501240,6.11484968,2582.5,2581.9,3.28555]
[1723779501241,1.93611,2582.5,2581.9,3.28555]
[1723779501429,0.65900746,2582.4,2581.9,3.28555]
[1723779501630,0.65900746,2582.3,2582.1,1.349]
[1723779501866,0.2361661,2582.2,2582.1,1.349]
[1723779502735,0.2361661,2582.2,2582.0,35.0]
[1723779502936,0.2361661,2582.1,2582.0,35.0]
[1723779504376,0.2361661,2582.1,2582.0,36.349]
[1723779504904,0.23609473,2582.1,2582.0,36.349]
[1723779505115,11.77723,2582.6,2582.0,36.349]
[1723779505272,0.2360946,2582.5,2582.0,36.349]
[1723779505473,0.2360946,2582.4,2582.0,38.28546]
[1723779505674,0.48838869,2582.7,2582.5,1.9361]
[1723779505909,6.03400648,2582.9,2582.3,3.9556702]
[1723779505910,0.23599953,2582.6,2582.3,3.9556702]
[1723779506211,0.23599953,2582.5,2582.2,1.349]
[1723779506377,0.23599953,2582.4,2582.2,1.349]
[1723779506584,2.3448,2582.9,2582.3,3.28525]
[1723779506914,0.65858263,2582.8,2582.3,3.28525]
[1723779507079,0.23598913,2582.7,2582.3,3.28525]
[1723779507276,0.23598913,2582.6,2582.3,3.28525]
[1723779507505,0.23598913,2582.5,2582.3,3.28525]
[1723779507708,2.3448,2582.9,2582.3,3.28525]
[1723779507867,0.65854799,2582.8,2582.3,3.28525]
[1723779508064,0.65854799,2582.7,2582.3,3.28525]
[1723779508266,0.65854868,2582.6,2582.3,3.28525]
[1723779508567,2.3448,2582.9,2582.4,1.93618]
[1723779508765,0.23598076,2582.8,2582.6,1.349]
[1723779509111,0.23598076,2582.7,2582.6,1.349]
[1723779509902,0.23598076,2582.7,2582.6,36.349]
[1723779510806,0.23598076,2582.7,2582.6,1.349]
[1723779511607,2.3448,2582.9,2582.6,1.349]
[1723779511608,0.23598076,2582.8,2582.6,1.349]
[1723779511809,0.23598076,2582.7,2582.6,1.349]
[1723779512306,0.23598076,2582.8,2582.6,1.349]
[1723779512507,0.23598076,2582.7,2582.6,5.22106]
[1723779512707,19.62,2583.3,2582.5,2.3223]
[1723779512912,19.62,2583.3,2582.5,1.349]
[1723779512913,1.93566,2583.1,2582.5,1.349]
[1723779513063,0.65869765,2583.0,2582.5,1.349]
[1723779513267,0.65869765,2582.9,2582.5,1.349]
[1723779513468,0.65869765,2582.8,2582.5,1.349]
[1723779513718,0.23602045,2582.7,2582.5,1.349]
[1723779513888,1.43558071,2583.0,2582.5,1.349]
[1723779513889,0.23603463,2582.6,2582.5,1.349]
[1723779514208,0.21656595,2582.9,2582.5,1.349]
[1723779514409,0.23603753,2582.8,2582.5,1.349]
[1723779514569,0.23603753,2582.7,2582.5,1.349]
[1723779514911,3.45947283,2583.1,2582.5,1.349]
[1723779515113,0.65871684,2583.0,2582.5,1.349]
[1723779515270,0.65871684,2582.9,2582.5,1.349]
[1723779515473,0.23603643,2582.8,2582.5,3.2851]
[1723779515670,3.45947283,2583.1,2582.5,1.349]
[1723779515875,1.82883852,2583.0,2582.5,1.349]
[1723779516069,0.23598191,2582.9,2582.5,1.349]
[1723779516495,0.23598191,2582.9,2582.5,3.28509]
[1723779516679,0.23599084,2582.8,2582.5,3.28509]
[1723779516865,1.17026541,2583.0,2582.5,3.28509]
[1723779517125,0.23601807,2582.9,2582.7,1.349]
[1723779517328,6.30755125,2583.2,2582.7,1.349]
[1723779517551,0.65869134,2583.1,2582.7,3.28495]
[1723779517754,0.23601936,2583.0,2582.7,1.349]
[1723779517971,0.23601936,2582.9,2582.7,1.349]
[1723779518335,1.44062426,2583.1,2582.7,1.349]
[1723779518539,0.23601483,2583.0,2582.7,1.349]
[1723779518866,0.23601483,2582.9,2582.7,1.349]
[1723779519072,0.77481755,2583.0,2582.7,1.349]
[1723779519836,0.23602729,2582.9,2582.7,1.349]
[1723779520171,0.77481755,2583.0,2582.7,1.349]
[1723779520474,0.23602832,2582.9,2582.7,1.349]
[1723779520677,0.77481755,2583.0,2582.7,1.349]
[1723779520876,0.23602232,2582.9,2582.7,1.349]
[1723779521190,0.77481755,2583.0,2582.7,1.349]
[1723779521328,0.45756881,2582.9,2582.7,1.349]
[1723779521534,0.23602463,2582.8,2582.7,1.349]
[1723779521776,0.23602463,2582.8,2582.5,1.349]
[1723779522262,2.59464741,2582.7,2582.1,1.349]
[1723779522466,0.23602463,2582.6,2582.1,1.349]
[1723779522642,1.93602,2582.7,2582.3,1.349]
[1723779522643,0.23602463,2582.5,2582.3,1.349]
[1723779522843,1.93602,2582.7,2582.3,1.349]
[1723779523085,0.23600581,2582.6,2582.3,1.349]
[1723779523387,0.23600581,2582.5,2582.3,1.349]
[1723779523573,1.93602,2582.7,2582.3,1.349]
[1723779523778,0.23600724,2582.6,2582.3,1.349]
[1723779523950,0.23600724,2582.5,2582.3,1.349]
[1723779524288,1.93602,2582.7,2582.3,1.349]
[1723779524434,0.23601381,2582.6,2582.3,1.349]
[1723779524997,0.23601381,2582.5,2582.3,1.349]
[1723779525207,0.23601381,2582.4,2582.3,1.349]
[1723779525375,0.23601381,2582.6,2582.3,1.349]
[1723779525575,0.23601381,2582.5,2582.3,1.349]
[1723779525922,0.23601381,2582.4,2582.3,1.349]
[1723779528022,2.50501381,2582.4,2582.1,1.349]
[1723779528180,0.23601381,2582.3,2582.1,1.349]
[1723779529019,2.269,2582.4,2582.1,1.349]
[1723779529420,0.23602413,2582.3,2581.8,1.349]
[1723779529743,0.23602413,2582.2,2581.8,1.349]
[1723779529942,0.23602413,2582.1,2581.8,1.349]
[1723779530118,0.23602413,2582.0,2581.8,1.349]
[1723779530319,1.93629,2582.3,2581.8,1.349]
[1723779530320,0.614152,2582.2,2581.8,1.349]
[1723779530546,0.2360414,2582.1,2581.8,1.349]
[1723779530731,0.2360414,2582.0,2581.8,1.349]
[1723779531046,0.614152,2582.2,2581.8,1.349]
[1723779531248,0.23613985,2582.1,2581.8,1.349]
[1723779531549,0.23613985,2582.0,2581.8,1.349]
[1723779531848,0.23613985,2581.9,2581.8,1.349]
[1723779532009,0.614152,2582.2,2581.8,1.349]
[1723779532208,0.2361352,2582.1,2581.8,1.349]
[1723779532551,0.2361352,2582.1,2581.7,1.9467]
[1723779532552,7.44,2582.5,2582.0,1.349]
[1723779532735,0.23613648,2582.4,2582.0,1.349]
[1723779532919,0.23613284,2582.3,2582.0,1.349]
[1723779533124,0.23613284,2582.2,2582.0,1.349]
[1723779533443,7.44,2582.5,2582.0,3.28547]
[1723779533620,0.2361295,2582.4,2582.3,1.93625]
[1723779533806,27.21,2582.7,2582.2,5.69171]
[1723779534005,27.21,2582.7,2582.4,3.28517]
[1723779534006,0.23612233,2582.6,2582.4,3.28517]
[1723779534207,27.21,2582.7,2582.1,1.349]
[1723779534208,0.23608368,2582.5,2582.1,1.349]
[1723779534402,27.21,2582.7,2582.1,3.2854]
[1723779534403,0.23608368,2582.4,2582.1,3.2854]
[1723779534633,30.91434803,2582.7,2582.2,1.9363]
[1723779534841,0.2359944,2582.6,2582.3,1.349]
[1723779535030,27.21,2582.7,2582.3,5.74365]
[1723779535227,27.21,2582.7,2582.5,1.9361]
[1723779535228,0.2359944,2582.6,2582.5,1.9361]
[1723779536016,0.2359944,2582.6,2582.3,5.74365]
[1723779536017,0.2359944,2582.6,2582.3,1.93625]
[1723779536245,0.2359944,2582.5,2582.3,1.93625]
[1723779536431,0.2359944,2582.4,2582.3,1.93625]
[1723779536761,13.060143,2582.7,2582.3,1.93625]
[1723779536915,0.23600981,2582.6,2582.3,1.93625]
[1723779537254,0.23600981,2582.5,2582.3,1.93625]
[1723779537463,0.23600981,2582.4,2582.3,1.93625]
[1723779538322,7.44,2582.7,2582.3,3.28525]
[1723779538522,0.23597074,2582.6,2582.3,3.28525]
[1723779538873,0.23597074,2582.5,2582.3,3.28525]
[1723779539163,7.44,2582.7,2582.3,1.349]
[1723779539461,0.97997416,2582.6,2582.3,1.349]
[1723779539663,0.23597416,2582.5,2582.3,1.349]
[1723779539903,0.23597416,2582.4,2582.3,1.349]
[1723779540110,0.744,2582.6,2582.3,1.349]
[1723779540398,0.2359674,2582.5,2582.3,1.349]
[1723779540602,0.744,2582.6,2582.3,1.349]
[1723779540811,0.23597289,2582.4,2582.2,1.93633]
[1723779540999,0.744,2582.6,2582.2,1.93633]
[1723779541000,3.186,2582.6,2582.2,1.93633]
[1723779541316,1.29857722,2582.5,2582.1,1.349]
[1723779541459,0.23597722,2582.4,2582.1,1.349]
[1723779541859,0.23597722,2582.3,2582.1,1.349]
[1723779542063,3.186,2582.6,2582.1,1.349]
[1723779542383,0.23601527,2582.5,2582.1,1.349]
[1723779542703,7.44,2582.7,2582.2,1.93626]
[1723779542704,0.23601527,2582.4,2582.2,1.93626]
[1723779542909,7.44,2582.7,2582.2,1.93626]
[1723779543081,0.65856397,2582.6,2582.2,1.93626]
[1723779543279,0.23599543,2582.5,2582.2,1.93626]
[1723779543522,7.44,2582.7,2582.2,1.93626]
[1723779543823,0.23601264,2582.6,2582.2,1.93626]
[1723779544022,0.23601264,2582.5,2582.2,1.93626]
[1723779544223,7.44,2582.7,2582.2,1.93626]
[1723779544224,0.23601264,2582.4,2582.2,1.93626]
[1723779544393,7.44,2582.7,2582.2,1.93626]
[1723779544579,0.65860054,2582.6,2582.2,1.93626]
[1723779544784,0.23600702,2582.5,2582.2,1.93626]
[1723779545028,7.44,2582.7,2582.6,1.93603]
[1723779545197,7.67607952,2582.7,2582.6,5.71483]
[1723779545529,0.48823178,2583.3,2582.9,1.9358]
[1723779545686,0.23609365,2583.2,2583.1,3.28465]
[1723779546103,0.73037634,2583.7,2583.1,3.28465]
[1723779546104,13.50221222,2583.8,2583.2,1.93557]
[1723779546319,3.10247058,2583.7,2583.2,1.93557]
[1723779546620,0.65890526,2583.6,2583.3,1.9355]
[1723779546820,0.65890526,2583.5,2583.3,1.9355]
[1723779547027,0.23607885,2583.4,2583.3,1.9355]
[1723779547186,0.23607885,2583.4,2583.2,2.4265]
[1723779547532,14.3046964,2583.8,2583.1,1.93565]
[1723779547822,6.83173897,2583.6,2582.9,5.71127]
[1723779548022,2.3741,2583.4,2582.7,1.93595]
[1723779548227,1.03522471,2583.3,2582.7,1.93595]
[1723779548529,0.65889311,2583.2,2582.7,1.93595]
[1723779548700,0.23607531,2583.1,2582.7,1.93595]
[1723779548902,0.23607531,2583.0,2582.7,1.93595]
[1723779549093,0.3763316,2583.3,2582.7,1.93595]
[1723779549436,0.236088,2583.2,2582.8,1.93588]
[1723779549755,9.7842024,2583.7,2582.8,1.93588]
[1723779549888,1.98463037,2583.6,2582.8,1.93588]
[1723779550216,1.98463037,2583.6,2583.0,1.9357]
[1723779550217,0.65893664,2583.5,2583.0,1.9357]
[1723779550429,0.23609499,2583.4,2583.0,1.9357]
[1723779550588,1.32569373,2583.6,2583.0,1.9357]
[1723779550589,0.23609499,2583.3,2583.0,1.9357]
[1723779550792,11.13005257,2583.8,2582.9,2.4265]
[1723779551098,11.13005257,2583.8,2583.2,1.93552]
[1723779551099,0.65908834,2583.7,2583.2,1.93552]
[1723779551295,0.2361404,2583.6,2583.2,1.93552]
[1723779551503,0.2361512,2583.5,2583.2,1.93552]
[1723779551691,0.236155,2583.4,2583.2,1.93552]
[1723779551892,1.35041526,2583.7,2583.2,1.93552]
[1723779552121,0.65913761,2583.6,2583.2,1.93552]
[1723779552296,0.43711614,2583.5,2583.2,1.93552]
[1723779552497,0.23616085,2583.4,2583.0,1.93571]
[1723779552794,0.20095529,2583.5,2583.1,1.93565]
[1723779553022,0.23612837,2583.4,2583.1,1.93565]
[1723779553217,0.20095529,2583.5,2583.1,1.93565]
[1723779553395,0.23613959,2583.4,2583.1,1.93565]
[1723779553593,0.20095529,2583.5,2583.1,1.93565]
[1723779553793,0.2361222,2583.4,2583.2,35.0]
[1723779554036,1.35041526,2583.7,2583.2,35.0]
[1723779554207,0.65901059,2583.6,2583.2,35.0]
[1723779554407,0.23611503,2583.5,2583.2,35.0]
[1723779554607,0.23611503,2583.4,2583.2,35.0]
[1723779554903,0.23614541,2583.3,2582.9,4.3623]
[1723779555196,1.93543,2583.4,2582.7,1.93595]
[1723779555359,0.2361385,2583.3,2582.7,1.93595]
[1723779555553,2.66716745,2583.4,2582.8,1.93586]
[1723779555754,0.23611805,2583.3,2582.8,1.93586]
[1723779555987,2.17162805,2583.3,2582.7,35.0]
[1723779556186,0.7199976,2583.2,2582.7,35.0]
[1723779556393,2.66716745,2583.4,2582.7,35.0]
[1723779556694,2.59448634,2583.3,2582.7,35.0]
[1723779556996,0.23612291,2583.2,2582.7,35.0]
[1723779557194,0.23612291,2583.1,2582.7,35.0]
[1723779557403,0.23609527,2583.0,2582.7,35.0]
[1723779557583,2.43964675,2583.3,2582.7,35.0]
[1723779557789,1.93574,2583.0,2582.4,1.93611]
[1723779557989,0.23606645,2582.9,2582.3,1.93625]
[1723779558383,0.23606645,2582.9,2582.3,35.0]
[1723779558618,0.23606645,2582.9,2582.3,36.93623]
[1723779558974,0.23606645,2582.9,2582.3,35.0]
[1723779559298,3.1742471,2582.9,2582.3,35.0]
[1723779559481,0.23606645,2582.8,2582.3,35.0]
[1723779559681,2.93818065,2582.9,2582.3,36.93624]
[1723779559894,0.23614007,2582.8,2582.3,35.0]
[1723779560184,1.93574,2583.0,2582.3,35.0]
[1723779560185,5.41121314,2583.0,2582.3,35.0]
[1723779560383,0.23613562,2582.9,2582.3,35.0]
[1723779560589,0.23613562,2582.8,2582.3,35.0]
[1723779560789,1.9358,2582.9,2582.3,35.0]
[1723779561080,0.23613756,2582.8,2582.3,35.0]
[1723779561284,0.23613756,2582.7,2582.3,35.0]
[1723779561483,4.25552612,2582.9,2582.3,35.0]
[1723779561696,0.2361461,2582.8,2582.3,35.0]
[1723779561894,0.2361461,2582.7,2582.3,36.93624]
[1723779562106,5.41126314,2583.0,2582.3,35.0]
[1723779562268,0.23614699,2582.9,2582.3,35.0]
[1723779562475,0.23614699,2582.8,2582.3,35.0]
[1723779562677,0.23614699,2582.7,2582.3,35.0]
[1723779562872,0.23614699,2582.6,2582.3,35.0]
[1723779563219,5.74524125,2583.0,2582.3,35.0]
[1723779563220,1.93581,2582.9,2582.3,35.0]
[1723779563383,0.23612205,2582.8,2582.3,35.0]
[1723779563722,0.23612205,2582.7,2582.3,35.0]
[1723779563885,0.23612205,2582.6,2582.3,35.0]
[1723779564094,0.23612205,2582.6,2581.7,0.01]
[1723779564095,0.23610186,2582.5,2581.7,0.01]
[1723779564273,2.17230186,2582.4,2581.8,1.93663]
[1723779564475,0.23610186,2582.3,2581.8,36.93663]
[1723779564805,0.23610186,2582.2,2581.8,36.93663]
[1723779564985,1.93618,2582.4,2581.8,36.93663]
[1723779564986,0.23610186,2582.1,2581.8,35.0]
[1723779565199,0.23607671,2582.0,2581.8,35.0]
[1723779565399,1.93618,2582.4,2581.8,36.93662]